bitfinex-derivatives/quotes_BTCF0:USTF0_20241010
["timestamp","ask_amount","ask_price","bid_price","bid_amount"]
[1728551316265,0.206201,60884.0,60883.0,0.10291785]
[1728551318366,0.206201,60884.0,60883.0,0.16866167]
[1728551320365,0.206201,60884.0,60883.0,0.10291785]
[1728551320862,0.204201,60884.0,60883.0,0.10191785]
[1728551321068,0.206201,60884.0,60883.0,0.10191785]
[1728551321669,0.205201,60884.0,60883.0,0.10191785]
[1728551322464,0.205201,60884.0,60883.0,0.10091785]
[1728551322675,0.205201,60884.0,60883.0,0.30303823]
[1728551323264,0.205201,60884.0,60883.0,0.18309763]
[1728551323265,0.203201,60884.0,60883.0,0.18309763]
[1728551323469,0.205201,60884.0,60883.0,0.22090571]
[1728551323666,0.205201,60884.0,60876.0,0.0038]
[1728551323667,0.08221,60877.0,60876.0,0.0038]
[1728551323972,0.08221,60877.0,60874.0,0.0937386]
[1728551323973,0.082218,60871.0,60870.0,0.3608]
[1728551324171,0.322218,60871.0,60870.0,0.48348294]
[1728551324367,0.20471648,60871.0,60870.0,0.3608]
[1728551324573,0.39471648,60871.0,60870.0,0.3608]
[1728551325477,0.20620369,60871.0,60870.0,0.3608]
[1728551325676,0.14119247,60871.0,60870.0,0.3608]
[1728551325870,0.272218,60871.0,60870.0,0.3608]
[1728551326783,0.7408,60871.0,60869.0,0.00246429]
[1728551326985,0.7408,60871.0,60869.0,0.00173989]
[1728551326986,0.14119516,60870.0,60869.0,0.00173989]
[1728551328380,0.14119516,60870.0,60869.0,0.00573989]
[1728551328986,0.50199516,60870.0,60869.0,0.00573989]
[1728551329390,0.68151297,60870.0,60869.0,0.00873989]
[1728551329994,1.77435297,60870.0,60869.0,0.007]
[1728551330194,1.77535297,60870.0,60869.0,0.003]
[1728551330489,0.082228,60864.0,60862.0,0.41105]
[1728551330696,0.082229,60863.0,60862.0,0.41105]
[1728551330988,0.13270591,60863.0,60862.0,0.41105]
[1728551331393,0.04108612,60863.0,60862.0,0.53185282]
[1728551332088,0.04108612,60863.0,60862.0,0.53785282]
[1728551332285,0.19,60864.0,60862.0,0.53785282]
[1728551332487,0.272228,60864.0,60863.0,0.12080282]
[1728551332888,0.272228,60864.0,60863.0,0.12480282]
[1728551333484,0.272228,60864.0,60863.0,0.004]
[1728551333895,0.272228,60864.0,60863.0,0.12412816]
[1728551334095,0.272228,60864.0,60863.0,0.1291282]
[1728551334595,0.272228,60864.0,60863.0,0.009]
[1728551335499,0.082228,60864.0,60863.0,0.009]
[1728551336494,0.10176938,60864.0,60863.0,0.009]
[1728551336995,0.082213,60875.0,60874.0,0.41105]
[1728551337396,0.082213,60875.0,60874.0,0.60105]
[1728551337595,0.082213,60875.0,60874.0,0.53068827]
[1728551338191,0.084213,60875.0,60874.0,0.53168827]
[1728551339293,0.15623737,60875.0,60874.0,0.41205]
[1728551339703,0.15823737,60875.0,60874.0,0.41305]
[1728551340602,0.15823737,60875.0,60874.0,0.41105]
[1728551340603,0.15423737,60875.0,60874.0,0.41105]
[1728551340898,0.15423737,60875.0,60874.0,0.42805]
[1728551341093,0.51503737,60875.0,60874.0,0.42805]
[1728551341296,1.8483058,60875.0,60874.0,0.42805]
[1728551341507,1.7683058,60875.0,60874.0,0.42805]
[1728551342195,1.86756331,60875.0,60874.0,0.42805]
[1728551342409,1.82729939,60875.0,60874.0,0.42805]
[1728551343097,1.9313256,60875.0,60874.0,0.42805]
[1728551343502,1.76832227,60875.0,60874.0,0.42805]
[1728551343803,1.9313256,60875.0,60874.0,0.42805]
[1728551344104,1.76832227,60875.0,60874.0,0.42805]
[1728551344401,1.76832227,60875.0,60874.0,0.42005]
[1728551344901,1.77032227,60875.0,60874.0,0.41205]
[1728551345206,1.77232227,60875.0,60874.0,0.04827927]
[1728551345594,1.77032227,60875.0,60874.0,0.04727927]
[1728551345798,1.77232227,60875.0,60874.0,0.04727927]
[1728551346299,1.69008245,60875.0,60874.0,0.04727927]
[1728551346493,1.649813,60875.0,60874.0,0.04727927]
[1728551347090,1.649813,60875.0,60874.0,0.04627927]
[1728551349202,1.649813,60875.0,60874.0,0.01009927]
[1728551351199,1.649813,60875.0,60874.0,0.00039005]
[1728551353122,0.575054,60874.0,60873.0,8.5e-07]
[1728551353297,0.685054,60874.0,60873.0,8.5e-07]
[1728551353605,0.082218,60871.0,60870.0,0.06553707]
[1728551353907,0.382218,60871.0,60870.0,0.06553707]
[1728551354406,0.082227,60865.0,60864.0,0.06933707]
[1728551354707,0.082227,60865.0,60864.0,0.06553707]
[1728551355406,0.12,60867.0,60863.0,0.06553707]
[1728551355707,0.202228,60864.0,60863.0,0.06553707]
[1728551358005,0.202228,60864.0,60863.0,0.07853707]
[1728551358302,0.202228,60864.0,60863.0,0.08953707]
[1728551358508,0.202228,60864.0,60863.0,0.43504]
[1728551358509,0.322228,60864.0,60863.0,0.43504]
[1728551358910,0.322228,60864.0,60863.0,0.43804]
[1728551359513,0.202228,60864.0,60863.0,0.43804]
[1728551360505,0.272228,60864.0,60863.0,0.43804]
[1728551361405,0.70507574,60864.0,60863.0,0.43804]
[1728551361618,0.83568417,60864.0,60863.0,0.43804]
[1728551362614,0.70507574,60864.0,60863.0,0.43804]
[1728551365916,0.70507558,60864.0,60863.0,0.43804]
[1728551367407,0.83568401,60864.0,60863.0,0.43804]
[1728551368410,0.70507558,60864.0,60863.0,0.43804]
[1728551369108,0.51507558,60864.0,60863.0,0.43804]
[1728551369511,0.443028,60864.0,60863.0,0.43804]
[1728551370610,0.633028,60864.0,60863.0,0.43804]
[1728551371014,0.633028,60864.0,60863.0,0.55825685]
[1728551371320,0.633028,60864.0,60863.0,0.64036657]
[1728551371709,0.272228,60864.0,60863.0,0.55825685]
[1728551374123,0.633028,60864.0,60863.0,0.55825685]
[1728551374924,0.272228,60864.0,60863.0,0.55825685]
[1728551375227,0.633028,60864.0,60863.0,0.55825685]
[1728551375430,0.633028,60864.0,60863.0,0.55817448]
[1728551376516,0.633028,60864.0,60863.0,0.64034012]
[1728551377321,0.633028,60864.0,60863.0,0.55817448]
[1728551379629,0.443028,60864.0,60863.0,0.55817448]
[1728551382525,0.683028,60864.0,60863.0,0.55817448]
[1728551384436,0.80555584,60864.0,60863.0,0.43804]
[1728551385328,0.44475584,60864.0,60863.0,0.43804]
[1728551385527,0.80555584,60864.0,60863.0,0.43804]
[1728551386438,0.44475584,60864.0,60863.0,0.43804]
[1728551386623,0.80555584,60864.0,60863.0,0.43804]
[1728551390750,0.96857753,60864.0,60863.0,0.43804]
[1728551391437,0.84604969,60864.0,60863.0,0.55834136]
[1728551391637,0.683028,60864.0,60863.0,0.55834136]
[1728551392465,0.683028,60864.0,60863.0,0.50102676]
[1728551392749,0.683028,60864.0,60863.0,0.62133857]
[1728551392951,0.683028,60864.0,60863.0,0.41878192]
[1728551393429,0.683028,60864.0,60863.0,0.33122535]
[1728551393638,0.683028,60864.0,60857.0,0.0038]
[1728551393639,0.082232,60861.0,60860.0,0.04968506]
[1728551393837,0.08224,60855.0,60854.0,0.0982991]
[1728551394036,0.64188858,60855.0,60854.0,0.12038639]
[1728551395149,0.75188858,60855.0,60854.0,0.014]
[1728551395444,1.84484858,60855.0,60854.0,0.07976723]
[1728551395837,1.84484858,60855.0,60854.0,0.014]
[1728551396147,1.80376,60855.0,60852.0,0.06576723]
[1728551396340,0.429043,60853.0,60852.0,0.06576723]
[1728551396644,0.539043,60853.0,60852.0,0.06576723]
[1728551396948,1.032043,60853.0,60852.0,0.06576723]
[1728551397249,0.082244,60852.0,60851.0,0.06576723]
[1728551397440,1.153844,60852.0,60851.0,0.06576723]
[1728551398158,0.082245,60851.0,60850.0,0.33155658]
[1728551398339,0.202245,60851.0,60850.0,0.33155658]
[1728551399443,0.23402305,60851.0,60850.0,0.33155658]
[1728551399834,0.23402305,60851.0,60850.0,0.32765658]
[1728551400234,0.23012305,60851.0,60850.0,0.32765658]
[1728551400440,0.23112305,60851.0,60850.0,0.33865658]
[1728551401160,0.23212305,60851.0,60850.0,0.33865658]
[1728551402753,0.95372305,60851.0,60850.0,0.33865658]
[1728551403139,0.95372305,60851.0,60850.0,0.30254258]
[1728551403367,0.95372305,60851.0,60850.0,0.25795258]
[1728551404751,0.95372305,60851.0,60850.0,0.22285258]
[1728551405149,0.95272305,60851.0,60850.0,0.22285258]
[1728551405562,0.95272305,60851.0,60850.0,0.21791488]
[1728551405852,0.95272305,60851.0,60850.0,0.19242443]
[1728551406046,0.95272305,60851.0,60850.0,0.13990443]
[1728551406444,0.920945,60851.0,60850.0,0.13990443]
[1728551406949,0.919945,60851.0,60850.0,0.13290443]
[1728551409054,0.919945,60851.0,60850.0,0.09829443]
[1728551409256,0.919945,60851.0,60850.0,0.01976443]
[1728551409755,0.919945,60851.0,60850.0,0.01133443]
[1728551413962,0.198345,60851.0,60850.0,0.01133443]
[1728551414176,0.919945,60851.0,60850.0,0.01133443]
[1728551416560,0.9616,60851.0,60841.0,0.04718845]
[1728551416754,0.082264,60837.0,60836.0,0.0727]
[1728551417055,0.202264,60837.0,60836.0,0.0727]
[1728551417261,0.082264,60837.0,60836.0,0.0727]
[1728551417959,0.443064,60837.0,60836.0,0.0727]
[1728551418466,0.444064,60837.0,60836.0,0.0727]
[1728551420255,0.445064,60837.0,60836.0,0.0767]
[1728551420458,0.084264,60837.0,60836.0,0.0767]
[1728551421556,0.084264,60837.0,60836.0,0.19513819]
[1728551421752,0.002,60837.0,60836.0,0.79513819]
[1728551421961,0.082255,60844.0,60837.0,0.082264]
[1728551422196,0.082255,60844.0,60843.0,0.12]
[1728551422367,0.082255,60844.0,60843.0,0.33699006]
[1728551422569,0.082255,60844.0,60843.0,0.23843819]
[1728551423057,0.082255,60844.0,60843.0,0.38773819]
[1728551423252,0.082255,60844.0,60843.0,0.48629006]
[1728551423459,0.083255,60844.0,60843.0,0.48629006]
[1728551423665,0.084255,60844.0,60843.0,0.48629006]
[1728551424273,0.203255,60844.0,60843.0,0.36629006]
[1728551424461,0.204255,60844.0,60843.0,0.27573819]
[1728551425459,0.204255,60844.0,60843.0,0.27570004]
[1728551432964,0.565055,60844.0,60843.0,0.27570004]
[1728551435467,0.204255,60844.0,60843.0,0.27570004]
[1728551435659,0.565055,60844.0,60843.0,0.27570004]
[1728551436359,0.445055,60844.0,60843.0,0.39570004]
[1728551436566,0.47683328,60844.0,60843.0,0.2773]
[1728551436786,0.47683328,60844.0,60843.0,0.1573]
[1728551438465,0.59683328,60844.0,60843.0,0.1573]
[1728551439925,0.23603328,60844.0,60843.0,0.1573]
[1728551440075,0.59683328,60844.0,60843.0,0.1573]
[1728551440666,0.59683328,60844.0,60843.0,0.082]
[1728551442175,0.23603328,60844.0,60843.0,0.082]
[1728551442384,0.59683328,60844.0,60843.0,0.082]
[1728551443683,0.71129518,60844.0,60843.0,0.082]
[1728551444687,0.52389646,60844.0,60843.0,0.29905843]
[1728551444983,0.52389646,60844.0,60843.0,0.20050656]
[1728551445889,0.16309646,60844.0,60843.0,0.12650656]
[1728551446086,0.52389646,60844.0,60843.0,0.12650656]
[1728551450985,0.16309646,60844.0,60843.0,0.12650656]
[1728551451180,0.52389646,60844.0,60843.0,0.12650656]
[1728551451688,0.64645846,60844.0,60843.0,0.008]
[1728551453692,0.80948015,60844.0,60843.0,0.008]
[1728551453994,0.44868015,60844.0,60843.0,0.008]
[1728551454211,0.80948015,60844.0,60843.0,0.008]
[1728551454792,0.68948015,60844.0,60843.0,0.008]
[1728551455591,0.52645846,60844.0,60843.0,0.008]
[1728551456392,0.68992484,60844.0,60843.0,0.008]
[1728551456793,0.52645846,60844.0,60843.0,0.008]
[1728551458491,0.68992571,60844.0,60843.0,0.008]
[1728551459290,0.52645846,60844.0,60843.0,0.008]
[1728551459791,0.40389646,60844.0,60843.0,0.12597541]
[1728551460702,0.40389646,60844.0,60843.0,0.24597541]
[1728551460895,0.01560907,60846.0,60843.0,0.96193731]
[1728551461098,0.082241,60855.0,60849.0,0.12]
[1728551461304,0.082241,60855.0,60848.0,0.082249]
[1728551461305,0.082242,60854.0,60852.0,0.21874441]
[1728551461601,0.082242,60854.0,60853.0,0.11797541]
[1728551462088,0.082242,60854.0,60853.0,0.21671982]
[1728551462287,0.202242,60854.0,60853.0,0.21671982]
[1728551462495,0.202242,60854.0,60853.0,0.11797541]
[1728551464195,0.563042,60854.0,60853.0,0.11797541]
[1728551464399,0.566042,60854.0,60853.0,0.11797541]
[1728551464695,0.568042,60854.0,60853.0,0.11797541]
[1728551465793,0.568041,60854.0,60853.0,0.11743928]
[1728551466200,0.568041,60854.0,60853.0,0.11743644]
[1728551466399,0.568041,60854.0,60852.0,0.08215294]
[1728551466597,0.202243,60853.0,60852.0,0.08215294]
[1728551466796,0.082245,60851.0,60850.0,0.1646]
[1728551467697,0.082252,60847.0,60844.0,0.36316]
[1728551467892,0.12,60845.0,60844.0,0.3608]
[1728551468499,0.202254,60845.0,60844.0,0.3608]
[1728551469399,0.083254,60845.0,60844.0,0.3718]
[1728551470105,0.083254,60845.0,60844.0,0.011]
[1728551471607,0.084254,60845.0,60844.0,0.011]
[1728551471802,0.10043776,60845.0,60844.0,0.011]
[1728551472005,0.10043776,60845.0,60844.0,0.131]
[1728551473197,0.10043776,60845.0,60844.0,0.011]
[1728551473606,0.10043776,60845.0,60844.0,0.06027449]
[1728551474302,0.10043776,60845.0,60844.0,0.093255]
[1728551474703,0.19120826,60845.0,60844.0,0.093255]
[1728551475007,0.22298218,60845.0,60844.0,0.093255]
[1728551475206,0.22298218,60845.0,60844.0,0.213255]
[1728551475440,0.26363806,60845.0,60844.0,0.213255]
[1728551475609,0.34590148,60845.0,60844.0,0.213255]
[1728551475806,0.38618248,60845.0,60844.0,0.213255]
[1728551476603,0.38618248,60845.0,60844.0,0.131]
[1728551478204,0.38618248,60845.0,60844.0,0.3718]
[1728551478412,0.22298218,60845.0,60844.0,0.3718]
[1728551479315,0.26372917,60845.0,60844.0,0.011]
[1728551479519,0.28198255,60845.0,60844.0,0.011]
[1728551479715,0.34291912,60845.0,60844.0,0.011]
[1728551480010,0.51596879,60845.0,60844.0,0.011]
[1728551480213,0.46547929,60845.0,60844.0,0.011]
[1728551480432,0.46547533,60845.0,60844.0,0.011]
[1728551480719,0.58547533,60845.0,60844.0,0.011]
[1728551480909,0.42219793,60845.0,60844.0,0.011]
[1728551481109,0.53219793,60845.0,60844.0,0.011]
[1728551481420,0.69548193,60845.0,60844.0,0.011]
[1728551481620,0.53219793,60845.0,60844.0,0.011]
[1728551481918,0.77043776,60845.0,60844.0,0.011]
[1728551482121,0.66043776,60845.0,60844.0,0.07672106]
[1728551483508,0.66043776,60845.0,60844.0,0.011]
[1728551485813,0.082255,60844.0,60843.0,0.04427314]
[1728551486007,0.082255,60844.0,60843.0,0.00838314]
[1728551486515,0.08226,60840.0,60839.0,0.00246553]
[1728551486717,0.68306,60840.0,60839.0,0.00246553]
[1728551487023,0.082263,60838.0,60837.0,0.08215294]
[1728551487415,0.082263,60838.0,60837.0,0.11717994]
[1728551488918,0.01612863,60838.0,60837.0,0.31944394]
[1728551489239,0.3608,60840.0,60838.0,0.082262]
[1728551489431,0.3608,60840.0,60839.0,0.0820875]
[1728551489622,0.32063979,60840.0,60839.0,0.40142709]
[1728551489819,0.32063979,60840.0,60839.0,0.202262]
[1728551489820,0.40887762,60840.0,60839.0,0.202262]
[1728551490216,0.40787762,60840.0,60839.0,0.202262]
[1728551490921,0.40987762,60840.0,60839.0,0.202262]
[1728551491718,0.40987762,60840.0,60839.0,0.12]
[1728551494018,0.60732431,60840.0,60839.0,0.12]
[1728551494222,0.09023783,60840.0,60839.0,0.202262]
[1728551494416,0.20508263,60840.0,60839.0,0.202262]
[1728551494623,0.28735752,60840.0,60839.0,0.202262]
[1728551494826,0.14073318,60840.0,60839.0,0.202262]
[1728551495025,0.09023783,60840.0,60839.0,0.202262]
[1728551495929,0.18030538,60840.0,60839.0,0.202262]
[1728551496156,0.18881397,60840.0,60839.0,0.202262]
[1728551496431,0.09023783,60840.0,60839.0,0.202262]
[1728551496726,0.01817016,60840.0,60839.0,0.41771603]
[1728551497729,0.10043016,60840.0,60839.0,0.41771603]
[1728551500528,0.082256,60844.0,60839.0,0.33524897]
[1728551500725,0.082256,60844.0,60843.0,0.66159535]
[1728551500923,0.082248,60850.0,60843.0,0.67976562]
[1728551501125,0.082248,60849.0,60848.0,0.12]
[1728551501432,0.082248,60849.0,60848.0,0.23670962]
[1728551503035,0.082248,60849.0,60848.0,0.11670962]
[1728551503232,0.082248,60849.0,60848.0,0.11606987]
[1728551503931,0.082248,60849.0,60848.0,0.11706987]
[1728551504117,0.082248,60849.0,60848.0,0.11906987]
[1728551504322,0.082248,60849.0,60848.0,0.20117618]
[1728551504732,0.20479125,60849.0,60848.0,0.123]
[1728551505033,0.11402161,60849.0,60848.0,0.123]
[1728551505224,0.20479125,60849.0,60848.0,0.123]
[1728551505623,0.26378726,60849.0,60848.0,0.123]
[1728551505824,0.3840864,60849.0,60848.0,0.123]
[1728551506028,0.3018384,60849.0,60848.0,0.20525]
[1728551506226,0.28554968,60849.0,60848.0,0.56605]
[1728551506444,0.12254325,60849.0,60848.0,1.65909]
[1728551506828,0.17929515,60852.0,60848.0,1.77909]
[1728551507125,0.3632652,60867.0,60848.0,1.77909]
[1728551507126,0.26922694,60851.0,60850.0,0.082247]
[1728551507334,0.1225317,60851.0,60850.0,0.082247]
[1728551507632,0.07204744,60851.0,60850.0,0.082247]
[1728551507824,0.16244115,60856.0,60849.0,0.0821]
[1728551507825,0.13037423,60852.0,60849.0,0.0821]
[1728551508026,0.13037423,60853.0,60852.0,0.082244]
[1728551508332,0.13037423,60853.0,60852.0,0.202244]
[1728551508528,0.13037423,60854.0,60853.0,0.082243]
[1728551508730,0.13037423,60854.0,60853.0,0.563043]
[1728551509620,0.13029702,60854.0,60853.0,0.563043]
[1728551509823,0.164481,60855.0,60853.0,0.563043]
[1728551510426,0.08224,60855.0,60853.0,0.4808]
[1728551510634,0.08224,60855.0,60854.0,0.082241]
[1728551511225,0.08624,60855.0,60854.0,0.082241]
[1728551511932,0.09024,60855.0,60854.0,0.082241]
[1728551513287,0.08624,60855.0,60854.0,0.082241]
[1728551513424,0.09024,60855.0,60854.0,0.082241]
[1728551515527,0.09024,60855.0,60854.0,0.443041]
[1728551516936,0.09024,60855.0,60854.0,0.082241]
[1728551517137,0.09024,60855.0,60854.0,0.443041]
[1728551517936,0.09024,60855.0,60854.0,0.3608]
[1728551522839,0.09024,60855.0,60854.0,0.41006394]
[1728551523337,0.09024,60855.0,60854.0,0.3608]
[1728551523533,0.09024,60855.0,60854.0,0.41006394]
[1728551525568,0.09024,60855.0,60854.0,0.3608]
[1728551526051,0.008,60855.0,60854.0,0.443041]
[1728551529229,0.09024,60855.0,60854.0,0.443041]
[1728551541850,0.21024,60855.0,60854.0,0.3608]
[1728551545052,0.008,60855.0,60854.0,0.443041]
[1728551548236,0.13052282,60855.0,60854.0,0.443041]
[1728551548421,0.13902841,60855.0,60854.0,0.443041]
[1728551548563,0.13052282,60855.0,60854.0,0.443041]
[1728551549057,0.22874646,60856.0,60855.0,0.08224]
[1728551549251,0.22874646,60856.0,60855.0,0.41799437]
[1728551549959,0.22874646,60856.0,60855.0,0.31930692]
[1728551551373,0.23374646,60856.0,60855.0,0.31930692]
[1728551551558,0.05409332,60856.0,60855.0,0.31930692]
[1728551551771,0.05409332,60856.0,60855.0,0.19930692]
[1728551551772,0.05809332,60856.0,60855.0,0.19930692]
[1728551554264,0.05809332,60856.0,60855.0,0.29799437]
[1728551554574,0.05809332,60856.0,60855.0,0.19930692]
[1728551555460,0.05809332,60856.0,60855.0,0.29799437]
[1728551555861,0.05809332,60856.0,60855.0,0.19930692]
[1728551556060,0.05809332,60856.0,60855.0,0.29799437]
[1728551559370,0.05809332,60856.0,60855.0,0.19930692]
[1728551564075,0.26951479,60856.0,60855.0,0.08224]
[1728551564572,0.36026931,60856.0,60855.0,0.08224]
[1728551565769,0.23960236,60856.0,60855.0,0.08224]
[1728551566670,0.18061616,60856.0,60855.0,0.08224]
[1728551568683,0.18061616,60856.0,60854.0,0.00232]
[1728551568684,0.08224,60855.0,60854.0,0.00232]
[1728551568871,0.18151333,60855.0,60848.0,0.3608]
[1728551569070,0.12,60849.0,60847.0,0.0038]
[1728551569266,0.44943595,60848.0,60842.0,0.3608]
[1728551569570,0.24545809,60843.0,60842.0,0.3608]
[1728551569767,0.20477884,60843.0,60842.0,0.3608]
[1728551570683,0.20477884,60843.0,60842.0,0.3658]
[1728551571269,0.20477884,60843.0,60842.0,0.3608]
[1728551571471,0.20577884,60843.0,60842.0,0.3658]
[1728551572081,0.083256,60843.0,60842.0,0.3658]
[1728551572276,0.084256,60843.0,60842.0,0.3708]
[1728551574090,0.084256,60843.0,60842.0,0.453058]
[1728551574274,0.084256,60843.0,60842.0,0.092258]
[1728551575075,0.10245462,60843.0,60842.0,0.092258]
[1728551576083,0.10245462,60843.0,60842.0,0.212258]
[1728551578180,0.10245462,60843.0,60842.0,0.07564644]
[1728551578392,0.10245462,60843.0,60842.0,0.19564644]
[1728551578774,0.10245462,60843.0,60842.0,0.07564644]
[1728551579112,1.31553462,60843.0,60842.0,0.01]
[1728551579385,1.34731202,60843.0,60842.0,0.01]
[1728551580086,1.70811202,60843.0,60842.0,0.01]
[1728551580269,1.70811368,60843.0,60842.0,0.01]
[1728551582579,0.61503368,60843.0,60842.0,0.01]
[1728551582886,1.10811368,60843.0,60842.0,0.01]
[1728551583189,1.70811368,60843.0,60842.0,0.01]
[1728551583381,0.61503368,60843.0,60842.0,0.01]
[1728551583590,1.70811404,60843.0,60842.0,0.01]
[1728551583786,0.61503404,60843.0,60842.0,0.01]
[1728551586595,1.10811404,60843.0,60842.0,0.01]
[1728551586978,0.58325462,60843.0,60842.0,0.01]
[1728551592086,0.38099862,60843.0,60842.0,0.27789462]
[1728551592288,0.02019862,60843.0,60842.0,0.29454603]
[1728551592508,0.02019862,60843.0,60842.0,0.41142695]
[1728551592686,0.02019862,60843.0,60842.0,0.47913892]
[1728551593300,0.02019862,60843.0,60842.0,0.32910453]
[1728551594098,0.07206046,60847.0,60846.0,0.082251]
[1728551594296,0.07206046,60847.0,60846.0,0.202251]
[1728551594797,0.20222923,60847.0,60846.0,0.202251]
[1728551595188,0.20222923,60847.0,60846.0,0.322251]
[1728551595495,0.0115,60854.0,60846.0,0.322251]
[1728551595496,0.15822327,60854.0,60850.0,0.082247]
[1728551595688,0.17952262,60857.0,60851.0,0.4527]
[1728551595689,0.13022856,60852.0,60851.0,0.4527]
[1728551595890,0.13022856,60854.0,60851.0,0.5727]
[1728551596091,0.12,60852.0,60847.0,0.08225]
[1728551596290,0.12,60849.0,60846.0,0.125]
[1728551596497,0.19,60850.0,60846.0,0.087252]
[1728551596699,0.082251,60847.0,60846.0,0.005]
[1728551597199,0.083251,60847.0,60846.0,0.011]
[1728551597901,0.083251,60847.0,60846.0,0.006]
[1728551598301,0.22975491,60847.0,60846.0,0.006]
[1728551598491,0.22985229,60847.0,60846.0,0.006]
[1728551598692,0.23085229,60847.0,60846.0,0.012]
[1728551600601,0.28134326,60847.0,60846.0,0.012]
[1728551600800,0.13474197,60847.0,60846.0,0.012]
[1728551602002,0.084251,60847.0,60846.0,0.22853883]
[1728551602189,0.084251,60847.0,60846.0,0.2285395]
[1728551606011,0.10226286,60847.0,60846.0,0.2285395]
[1728551609100,0.10226286,60847.0,60846.0,0.012]
[1728551609306,0.10226286,60847.0,60846.0,0.07769712]
[1728551609509,0.10226286,60847.0,60846.0,0.15994912]
[1728551609804,0.02001186,60847.0,60846.0,0.15994912]
[1728551610003,0.02001186,60847.0,60846.0,0.094252]
[1728551613102,0.002,60847.0,60846.0,0.094252]
[1728551613300,0.3608,60852.0,60851.0,0.082245]
[1728551613541,0.3608,60852.0,60851.0,0.272245]
[1728551613909,0.3790073,60852.0,60851.0,0.272245]
[1728551614103,0.0182073,60852.0,60851.0,0.272245]
[1728551614410,0.00246562,60856.0,60855.0,0.08224]
[1728551614637,0.00246562,60856.0,60855.0,0.14793202]
[1728551614638,0.08470462,60856.0,60855.0,0.14793202]
[1728551615408,0.00246562,60856.0,60855.0,0.14793202]
[1728551615807,0.01146562,60856.0,60855.0,0.14793202]
[1728551616508,0.02593197,60856.0,60855.0,0.14793202]
[1728551616707,0.02893197,60856.0,60855.0,0.14793202]
[1728551617004,0.11117097,60856.0,60855.0,0.14793202]
[1728551617205,0.11117097,60856.0,60855.0,0.08224]
[1728551617206,0.14294101,60856.0,60855.0,0.08224]
[1728551617411,0.23370044,60856.0,60855.0,0.08224]
[1728551617817,0.42270044,60856.0,60855.0,0.08224]
[1728551618202,0.23270044,60856.0,60855.0,0.08224]
[1728551618816,0.082243,60853.0,60852.0,0.0855]
[1728551619025,0.082243,60853.0,60846.0,0.0038]
[1728551619026,0.17834864,60853.0,60847.0,0.08225]
[1728551619214,0.19,60850.0,60847.0,0.08225]
[1728551619411,0.082252,60847.0,60845.0,0.082253]
[1728551619711,0.18152255,60846.0,60844.0,0.45542]
[1728551620014,0.26377655,60845.0,60844.0,0.4531]
[1728551620207,0.26377655,60845.0,60844.0,0.535355]
[1728551621318,0.18152255,60845.0,60844.0,0.535355]
[1728551621620,0.03177004,60845.0,60844.0,0.535355]
[1728551622019,0.21095686,60845.0,60844.0,0.535355]
[1728551622321,0.15430013,60845.0,60844.0,0.535355]
[1728551622508,0.20578812,60845.0,60844.0,0.547355]
[1728551622703,0.20578812,60845.0,60844.0,0.553355]
[1728551622953,0.26478314,60845.0,60844.0,0.553355]
[1728551623612,0.26578314,60845.0,60844.0,0.553355]
[1728551624211,0.18558819,60847.0,60844.0,1.08823115]
[1728551624418,0.082252,60847.0,60846.0,0.082252]
[1728551624720,0.082252,60847.0,60846.0,0.33931565]
[1728551625517,0.083252,60847.0,60846.0,0.33822069]
[1728551625720,0.084252,60847.0,60846.0,0.34422069]
[1728551626315,0.10302361,60847.0,60846.0,0.34422069]
[1728551627622,0.10302361,60847.0,60846.0,0.12277608]
[1728551627813,0.10302361,60847.0,60846.0,0.13577608]
[1728551628014,0.10302361,60847.0,60846.0,0.23439711]
[1728551628324,0.10302361,60847.0,60846.0,0.13577608]
[1728551629016,0.46382361,60847.0,60846.0,0.13577608]
[1728551630707,0.46382361,60847.0,60846.0,0.019]
[1728551630924,0.10302361,60847.0,60846.0,0.019]
[1728551631115,0.10302361,60847.0,60846.0,0.13597542]
[1728551632119,0.10302361,60847.0,60846.0,0.019]
[1728551634017,0.13479878,60847.0,60846.0,0.019]
[1728551634420,0.248827,60847.0,60846.0,0.019]
[1728551634621,0.17508202,60847.0,60846.0,0.019]
[1728551635460,0.17508202,60847.0,60841.0,0.3608]
[1728551635461,1.48587002,60847.0,60839.0,0.0038]
[1728551635622,1.48587002,60847.0,60831.0,0.33056541]
[1728551635623,0.08226,60840.0,60836.0,0.0038]
[1728551635817,0.19,60837.0,60831.0,0.33436541]
[1728551636028,0.19,60832.0,60831.0,0.41283841]
[1728551636323,0.0317807,60832.0,60831.0,0.08473841]
[1728551636518,0.19,60833.0,60831.0,0.00246541]
[1728551636825,0.11403869,60838.0,60832.0,0.19]
[1728551637026,0.03177947,60837.0,60836.0,0.089265]
[1728551637540,0.03177947,60837.0,60836.0,0.082265]
[1728551639224,0.04110289,60838.0,60836.0,0.19935383]
[1728551639530,0.04110289,60838.0,60837.0,0.11706909]
[1728551639826,0.05960175,60838.0,60837.0,0.11706909]
[1728551640243,0.05960175,60838.0,60837.0,0.19933309]
[1728551640823,0.06060175,60838.0,60837.0,0.11706909]
[1728551641020,0.06060175,60838.0,60837.0,0.19933309]
[1728551641617,0.06160175,60838.0,60837.0,0.19933309]
[1728551641824,0.06160175,60838.0,60837.0,0.11706909]
[1728551642323,0.06160175,60838.0,60837.0,0.19933309]
[1728551642539,0.082268,60834.0,60832.0,0.0820706]
[1728551642727,0.42240175,60838.0,60832.0,0.08208022]
[1728551642728,0.44307,60833.0,60832.0,0.08208022]
[1728551642914,0.082271,60832.0,60831.0,0.08208022]
[1728551643121,0.272271,60832.0,60831.0,0.08208022]
[1728551643317,1.37176,60832.0,60829.0,0.08208022]
[1728551643527,1.37176,60832.0,60824.0,0.0038]
[1728551643528,0.082277,60828.0,60827.0,0.03515616]
[1728551643831,0.082285,60822.0,60821.0,0.0038]
[1728551644128,0.082285,60822.0,60819.0,0.08454663]
[1728551644129,0.19,60822.0,60819.0,0.08454663]
[1728551644422,0.082287,60820.0,60819.0,0.00246641]
[1728551646035,0.083287,60820.0,60819.0,0.00246641]
[1728551646215,0.083287,60820.0,60816.0,0.082293]